Workbook

Sheet H2O Functions
B1: Physical Properties for Water
B2: Version 7.0 (WH2Ov70.bas) | F2: For Educational Use Only!
B3: Report errors to R. L. Smith; Email: smith@scf.che.tohoku.ac.jp
A4: Hint: Select green box to see how to use function. Be careful for units! First letter of function is dependent variable; other letters are independent variables; 2=H2O.
A5: Example: VPT2(P,T) is Specific Volume as a function of Pressure and Temperature.
A6: Function units are in kg, m3, C, Pa, J | I6: Ice type densities
A7: Fundamental Constants | B7: Function Name | C7: Examples | I7: ice type | J7: rho [kg/m3]
A8: Tc: critical temperature of H2O (in C) | B8: H2O_TC() | C8: =H2O_TC() -> 373.946 | D8: oC | I8: I | J8: =rho_iceI() -> 920
A9: Pc: critical pressure of H2O (in Pa) | B9: H2O_PC() | C9: =H2O_PC()/1000000 -> 22.064 | D9: MPa | I9: II | J9: =rho_iceII() -> 1170
A10: Vc: critical volume of H2O (m3/kg) | B10: H2O_VC() | C10: =H2O_VC() -> 0.003105590062 | D10: m3/kg | I10: III | J10: =rho_iceIII() -> 1140
A11: rhoc: critical density of H2O (kg/m3) | B11: H2O_rhoc() | C11: =H2O_rhoc() -> 322 | D11: kg/m3 | I11: IV | J11: =rho_iceIV() -> 1270
A12: Mw: molecular weight of H2O (kg/mol) | B12: H2O_MW() | C12: =H2O_mw() -> 0.018015268 | D12: kg/mol | I12: V | J12: =rho_iceV() -> 1230
A13: Omega: acentric factor (-) | B13: OMEGA_2() | C13: =omega_2() -> 0.344 | I13: VI | J13: =rho_iceVI() -> 1310
A14: Dipole moment: | B14: dipole_2() | C14: =dipole_2() -> 1.8 | D14: Debye | I14: VII | J14: =rho_iceVII() -> 1500
I15: VIII | J15: =rho_iceVIII() -> 1460
A16: Solid | I16: IX | J16: =rho_iceIX() -> 1160
A17: Pm: melting pressure (S-L) | C17: r [kg/m3] | D17: T [K] | E17: T [oC] | F17: P [MPa] | G17: Calculated Value | I17: X | J17: =rho_iceX() -> 2510
A18: Ice I: 251.165 K <= T <= 273.16 K | B18: PMELT_2("ice I",T) or PM_iceI(T) | D18: 270 | E18: =D18-273.15 -> -3.15 | G18: =PMELT_2("ice I",E18)/1000000 -> 39.96200239 | H18: MPa | I18: XI | J18: =rho_iceXI() -> 920
A19: Ice III: 251.165 K <= T <= 256.164 K | B19: PMELT_2("ice III",T) or PM_iceIII(T) | D19: 254 | E19: =D19-273.15 -> -19.15 | G19: =PMELT_2("ice III",E19)/1000000 -> 269.4559285 | H19: MPa | I19: XII | J19: =rho_iceXII() -> 1290
A20: Ice V: 256.164 K <= T <= 273.31 K | B20: PMELT_2("ice V",T) or PM_iceV(T) | D20: 268.15 | E20: -5 | G20: =PMELT_2("ice V",E20)/1000000 -> 533.6929536 | H20: MPa
A21: Ice VI: 273.31 K <= T <= 355 K | B21: PMELT_2("ice VI",T) or PM_iceVI(T) | D21: 273.25 | E21: 0.1 | G21: =PMELT_2("ice VI",E21)/1000000 -> 631.7139033 | H21: MPa | I21: Ice type temperature ranges
A22: Ice VII: 355 K <= T <= 715 K | B22: PMELT_2("ice VII",T) or PM_iceVII(T) | D22: 550 | E22: 276.85 | G22: =PMELT_2("ice VII",E22)/1000000 -> 6308.714244 | H22: MPa | I22: ice type | J22: Tlow [oC] | K22: Thigh [oC] | L22: Tlow [K] | M22: Thigh [K]
A23: Tm: melting temperature (S-L) - all forms of ice | B23: TMELT_P2(P) | F23: 400 | G23: =TMELT_P2(F23*1000000) -> -13.32973385 | H23: oC | I23: I | J23: =L23-273.15 -> -21.985 | K23: 0.01 | L23: 251.165 | M23: 273.16
A24: Psub: sublimation pressure (S-V) | B24: PSUB_T2(T) | D24: 250 | E24: -23.15 | G24: =PSUB_T2(E24)/1000000 -> 7.602897543e-05 | H24: MPa | I24: III | J24: -21.985 | K24: -16.986 | L24: 251.165 | M24: 256.164
A25: Tsub: sublimation pressure (S-V) | B25: TSUB_P2(P) | D25: =G25+273.15 -> 250 | F25: 7.602897543e-05 | G25: =TSUB_P2(F25*1000000) -> -23.15 | H25: oC | I25: V | J25: -16.986 | K25: 0.16 | L25: 256.164 | M25: 273.31
A26: rho: Density, kg/m3 - all forms of ice | B26: RHO_ICEP2(P) | C26: =rho_iceP2(F26*1000000) -> 1500 | F26: 2300 | I26: VI | J26: 0.16 | K26: 81.85 | L26: 273.31 | M26: 355
I27: VII | J27: =L27-273.15 -> 81.85 | K27: - | L27: 355 | M27: -
A28: Pressure-Volume (density)-Temperature
A29: Based on: Wagner, W., Pruß, A. The IAPWS formulation 1995 for the thermodynamic properties of ordinary water substance for general and scientific use. Journal of Physical and Chemical Reference Data, 31 (2002) 387-535.
C30: rho [kg/m3] | D30: T [oC] | E30: P [Pa] | F30: Calculated Value
A31: Saturation Curve: Vapor-liquid Equilibrium
A32: Psat: Vapor pressure (saturation pressure), Pa | B32: PSAT_T2(T) | D32: 1 | F32: =PSAT_T2(D32)/1000000 -> 0.0006570784581 | G32: MPa
A33: Tsat: Vapor temperature (saturation temperature), oC | B33: TSAT_P2(P) | E33: 657.078 | F33: =TSAT_P2(E33) -> 0.9999903245 | G33: oC
A34: Hvap: Heat (enthalpy) of vaporization, J/kg | B34: HVAP_T2(T) | D34: 24.85 | F34: =HVAP_T2(D34)*H2O_mw() -> 43997.78682 | G34: J/mol | H34: =HVAP_T2(D34)/1000 -> 2442.249919 | I34: kJ/kg
A35: Svap: Entropy of vaporization, J/kg K | B35: SVAP_T2(T) | D35: 25 | F35: =SVAP_T2(D35) -> 8190.150955 | G35: J/kg K
A36: dPdT: temperature derivative of Psat, Pa/K | B36: DPDT_T2(T) | D36: 25 | F36: =DPDT_T2(D36) -> 188.9808611 | G36: Pa/K
A37: Liquid phase (saturated) | D37: T [oC]
A38: r: Density, kg/m3 | B38: RHOL_T2(T) | D38: 250 | F38: =rhol_T2(D38) -> 798.9850136 | G38: kg/m3
A39: V: specific volume, m3/kg | B39: VL_T2(T) | D39: 25 | F39: =vl_t2(D39) -> 0.001003009663 | G39: m3/kg
A40: H: Enthalpy, H, J/kg | B40: HL_T2(T) | D40: 25 | F40: =hl_t2(D40) -> 104828.0309 | G40: J/kg
A41: U: Internal energy, J/kg | B41: UL_T2(T) | D41: 25 | F41: =UL_T2(D41) -> 104824.8515 | G41: J/kg
A42: S: Entropy, S, J/kg K | B42: SL_T2(T) | D42: 25 | F42: =SL_T2(D42) -> 367.220814 | G42: J/kg K
A43: Cp: constant pressure heat capacity, J/kg K | B43: CPL_T2(T) | D43: 25 | F43: =CPL_T2(D43) -> 4181.625178 | G43: J/kg K
A44: Cv: constant volume heat capacity, J/kg K | B44: CVL_T2(T) | D44: 25 | F44: =CVL_T2(D44) -> 4137.925496 | G44: J/kg K
A45: Gas/vapor phase (saturated) | D45: T [oC]
A46: r: Density, kg/m3 | B46: RHOG_T2(T) | D46: 25 | F46: =rhog_T2(D46) -> 0.02307362691 | G46: kg/m3
A47: V: specific volume, m3/kg | B47: VG_T2(T) | D47: 25 | F47: =vg_t2(D47) -> 43.33952368 | G47: m3/kg
A48: H: Enthalpy, H, J/kg | B48: HG_T2(T) | D48: 25 | F48: =HG_T2(D48) -> 2546721.538 | G48: J/kg
A49: U: Internal energy, J/kg | B49: UG_T2(T) | D49: 25 | F49: =UG_T2(D49) -> 2409342.855 | G49: J/kg
A50: S: Entropy, S, J/kg K | B50: SG_T2(T) | D50: 25 | F50: =SG_T2(D50) -> 8557.371769 | G50: J/kg K
A51: Cp: constant pressure heat capacity, J/kg K | B51: CPG_T2(T) | D51: 25 | F51: =CPG_T2(D51) -> 1911.81913 | G51: J/kg K
A52: Cv: constant volume heat capacity, J/kg K | B52: CVG_T2(T) | D52: 25 | F52: =CVG_T2(D52) -> 1440.496383 | G52: J/kg K
A53: Single Phase Region
A54: Note: U, H, S, Cp, Cv can be used
A55: on the saturation boundary
A57: T,P functions | C57: rho [kg/m3] | D57: T [oC] | E57: P [Pa] | F57: Calculated Value
A58: V: specific volume, Wagner eqn., m3/kg | B58: V_TP2(T,P) | D58: 100 | E58: 100000000 | F58: =V_TP2(D58,E58) -> 0.001000238268 | G58: m3/kg
A59: r: Density, kg/m3 | B59: RHO_TP2(T,P) | D59: 400 | E59: 900000000 | F59: =rho_tp2(D59,E59) -> 1036.310567 | G59: kg/m3 | H59: =1/F59 -> 0.0009649616934
A60: f: fugacity, Pa | B60: FUG_TP2(T,P) | D60: 300 | E60: 8000000 | F60: =fug_tp2(D60,E60)/1000000 -> 6.405087156 | G60: MPa
A61: U: internal energy | B61: U_TP2(T,P) | D61: 100 | E61: 100000000 | F61: =U_TP2(D61,E61) -> 395085.6416 | G61: J/kg
A62: H: Enthalpy, H, J/kg | B62: H_TP2(T,P) | D62: 100 | E62: 100000000 | F62: =H_TP2(D62,E62) -> 495109.4684 | G62: J/kg
A63: S: Entropy, S, J/kg K | B63: S_TP2(T,P) | D63: 100 | E63: 100000000 | F63: =S_TP2(D63,E63) -> 1237.476321 | G63: J/kg K
A64: Cv: constant volume heat capacity, J/kg K | B64: CV_TP2(T,P) | D64: 100 | E64: 100000000 | F64: =CV_TP2(D64,E64) -> 3636.26859 | G64: J/kg K
A65: Cp: constant pressure heat capacity, J/kg K | B65: CP_TP2(T,P) | D65: 100 | E65: 100000000 | F65: =cp_tp2(D65,E65) -> 4038.493344 | G65: J/kg K
A66: w: speed of sound, m/s | B66: W_TP2(T,P) | D66: 100 | E66: 100000000 | F66: =W_TP2(D66,E66) -> 1733.514565 | G66: m/s
A67: rho,T functions | C67: rho [kg/m3] | D67: T [oC]
A68: P: pressure, Wagner eqn., Pa | B68: P_RT2(RHO,T) | C68: 1065 | D68: 425 | F68: =P_RT2(C68,D68)/1000000 -> 1107.454825 | G68: MPa
A69: f: fugacity, Pa | B69: FUG_RT2(RHO,T) | C69: 1000 | D69: 25 | F69: =FUG_RT2(C69,D69)/1000000 -> 2.388616974e-16 | G69: MPa
A70: U: internal energy | B70: U_RT2(RHO,T) | C70: 1000 | D70: 100 | F70: =U_RT2(C70,D70) -> 394957.6887 | G70: J/kg
A71: H: Enthalpy, H, J/kg | B71: H_RT2(RHO,T) | C71: 1000 | D71: 100 | F71: =H_RT2(C71,D71) -> 495602.6508 | G71: J/kg
A72: S: Entropy, S, J/kg K | B72: S_RT2(RHO,T) | C72: 1000 | D72: 100 | F72: =S_RT2(C72,D72) -> 1237.069363 | G72: J/kg K
A73: Cv: constant volume heat capacity, J/kg K | B73: CV_RT2(RHO,T) | C73: 1000 | D73: 100 | F73: =CV_RT2(C73,D73) -> 3635.546962 | G73: J/kg K
A74: Cp: constant pressure heat capacity, J/kg K | B74: CP_RT2(RHO,T) | C74: 1000 | D74: 100 | F74: =CP_RT2(C74,D74) -> 4037.613922 | G74: J/kg K
A75: w: speed of sound, m/s | B75: W_RT2(RHOH,T) | C75: 1000 | D75: 100 | F75: =W_RT2(C75,D75) -> 1734.617362 | G75: m/s
A76: Virial Coefficients
A77: B: Second virial coefficient B, m3/kg | B77: VIRIALB_T2(T) | D77: 25 | F77: =VIRIALB_T2(D77) -> -0.001240872581 | G77: m3/kg
A78: C: Third virial coefficient C, m6/kg2 | B78: VIRIALC_T2(T) | D78: 25 | F78: =VIRIALC_T2(D78) -> -4.479192981e-06 | G78: m6/kg2
A79: P,V (or rho) functions | C79: P [Pa] | D79: rho [kg/m3] | E79: V [m3/kg] | F79: Calculated Value
A80: T:single phase temperature at P > Pc | B80: T_PV2(P,V) | C80: 900000000 | E80: 0.0009649616934 | F80: =T_PV2(C80,E80) -> 399.9999999
B81: T_PR2(P,RHO) | C81: 28370000 | D81: 1000 | F81: =T_PR2(C81,D81) -> 49.99712337
A82: T:single phase temperature at P < Pc, liquid phase | B82: T_PVL2(P,V) | C82: 10000000 | E82: 0.001 | F82: =T_PVL2(C82,E82) -> 30.0510114
B83: T_PRL2(P,RHO) | C83: 38000000 | D83: 1000 | F83: =T_PRL2(C83,D83) -> 58.18808659
A84: T:single phase temperature at P < Pc, gas phase | B84: T_PVG2(P,V) | C84: 38000000 | E84: 0.002 | F84: =T_PVG2(C84,E84) -> 401.4693971
B85: T_PRG2(P,RHO) | C85: 38000000 | D85: 500 | F85: =T_PRG2(C85,D85) -> 401.4693971
A86: Functions Useful for Compressors/Pumps/ Expansions through Valves | C86: S [J/kg K] | D86: P [Pa] | E86: H [J/kg]
A87: T: single phase temperature at P, S | B87: T_PS2(P,S) | C87: 1237.476321 | D87: 100000000 | F87: =T_PS2(D87,C87) -> 100 | G87: oC
A88: T: single phase temperature at P, H | B88: T_PH2(P,H) | D88: 100000000 | E88: 495109.4684 | F88: =t_ph2(D88,E88) -> 100 | G88: oC
A90: S: single or mixed phase entropy at P, H | B90: S_PH2(P,H) | D90: 100000000 | E90: 495109.4684 | F90: =S_PH2(D90,E90) -> 1510.730873 | G90: J/kg K
D91: T [oC] | E91: H [J/kg]
A92: S: saturation boundary or mixed phase entropy at T, H | B92: S_TH2(P,H) | D92: 100 | E92: 495109.4684 | F92: =S_TH2(D92,E92) -> 1510.730873 | G92: J/kg K
C93: rho [kg/m3] | D93: T [oC] | E93: P [Pa] | F93: Calculated Value
A94: Joule-Thomson coefficient mu = (dT/dP)h | B94: JT_RT2(RHO,T) | C94: 1000 | D94: 100 | F94: =JT_RT2(C94,D94)*1000000 -> -0.1496431828 | G94: K/MPa
A95: Isothermal throttling coefficient delt = (dh/dP)T | B95: DELT_RT2(RHO,T) | C95: 1000 | D95: 100 | F95: =DELT_RT2(C95,D95) -> 0.0007646768017 | G95: J/kg Pa
A96: Isentropic temperature pressure coefficient bs = (dT/dP)s | B96: BETAS_RT2(RHO,T) | C96: 1000 | D96: 100 | F96: =BETAS_RT2(C96,D96)*1000000 -> 0.05828273896 | G96: K/MPa
A98: Two Phase Region | C98: State | D98: P [Pa] | E98: H [J/kg] | F98: X [-]
A99: Quality X_PH2(P,H) | B99: X_PH2(P,H) | C99: I | D99: 101418 | E99: 3500000 | F99: =X_PH2(D99,E99) -> 1 | G99: T | H99: 100 | I99: C
C100: II | D100: 101418 | E100: 400000 | F100: =X_PH2(D100,E100) -> 0 | G100: HL | H100: =hl_t2(H99) -> 419162.8348 | I100: J/kg
C101: III | D101: 101418 | E101: 2500000 | F101: =X_PH2(D101,E101) -> 0.9221126221 | G101: HG | H101: =HG_T2(H99) -> 2675760.47 | I101: J/kg
G102: Psat | H102: =PSAT_T2(H99) -> 101417.9938 | I102: Pa
D103: P [Pa] | E103: S [J/kg K]
A104: Quality X_PS2(P,H) | B104: X_PS2(P,S) | C104: I | D104: 101418 | E104: 1307.2 | F104: =X_PS2(D104,E104) -> 0 | G104: T | H104: 100 | I104: C
C105: II | D105: 101418 | E105: 7354.6 | F105: =X_PS2(D105,E105) -> 0.9999950239 | G105: SL | H105: =SL_T2(H104) -> 1307.202443 | I105: J/(kg K)
C106: III | D106: 101418 | E106: 5000 | F106: =X_PS2(D106,E106) -> 0.6106393931 | G106: SG | H106: =SG_T2(H104) -> 7354.630113 | I106: J/(kg K)
G107: Psat | H107: =PSAT_T2(H104) -> 101417.9938 | I107: Pa
A108: Derivative Properties
A109: T,P functions | C109: rho [kg/m3] | D109: T [oC] | E109: P [Pa] | F109: Calculated Value
A110: dP/dT derivative | B110: DPDT_TP2(T, P) | D110: 100 | E110: 100000000 | F110: =DPDT_TP2(D110, E110)/1000000 -> 1.70739889 | G110: MPa/K
A111: dP/drho derivative = (dP/drho)T | B111: DPDR_TP2(T,P) | D111: 100 | E111: 100000000 | F111: =DPDR_TP2(D111,E111)/1000000 -> 2.705774336 | G111: MPa/(kg/m3)
A112: drho/dT derivative = (drho/dT)P | B112: DRDT_TP2(T,P) | D112: 100 | E112: 100000000 | F112: =DRDT_TP2(D112,E112) -> -0.631020432 | G112: (kg/m3 K)
A113: Isothermal compressibility = (1/rho)*(drho/dP)T | B113: BETAT_TP2(T,P) | D113: 100 | E113: 100000000 | F113: =BETAT_TP2(D113,E113)*1000000 -> 0.0003696680299 | G113: 1/MPa
A114: Volume coefficient of expansion = (1/V)*(dV/dT)P | B114: BETAP_TP2(T,P) | D114: 100 | E114: 100000000 | F114: =BETAP_TP2(D114,E114) -> 0.000631170784 | G114: 1/K
A115: rho,T functions | C115: rho [kg/m3] | D115: T [oC] | E115: P [Pa]
A116: dP/dT derivative | B116: DPDT_RT2(RHO,T) | C116: 1000 | D116: 100 | F116: =DPDT_RT2(C116,D116)/1000000 -> 1.708573413 | G116: MPa/K
A117: dP/drho derivative = (dP/drho)T | B117: DPDR_RT2(RHO,T) | C117: 1000 | D117: 100 | F117: =DPDR_RT2(C117,D117)/1000000 -> 2.709270372 | G117: MPa/(kg/m3)
A118: drho/dT derivative = (drho/dT)P (derived) | B118: DRDT_RT2(RHO,T) | C118: 1000 | D118: 100 | F118: =DRDT_RT2(C118,D118) -> -0.6306396845 | G118: (kg/m3 K)
A119: Isothermal compressibility = -(1/V)*(dV/dP)T | B119: BETAT_RT2(RHO,T) | C119: 1000 | D119: 25 | F119: =BETAT_RT2(C119,D119)*1000000 -> 0.0004449081393 | G119: 1/MPa
A120: Volume coefficient of expansion = -(1/V)*(dV/dT)P | B120: BETAP_RT2(RHO,T) | C120: 1000 | D120: 25 | F120: =BETAP_RT2(C120,D120) -> 0.0002645630789 | G120: 1/K
A121: Transport Properties
A122: Based on Sengers, et al. (1984)
A123: Liquid phase (saturated) | D123: T [oC] | F123: Calculated Value
A124: Viscosity, Pa s | B124: VMUL_T2(T) | D124: 25 | F124: =vmul_t2(D124) -> 0.0008908279742 | G124: Pa s
A125: Kinematic viscosity (dense gas), (=mu/rho), m2/s | B125: VNUL_T2(T) | D125: 25 | F125: =vnul_t2(D125) -> 8.935090662e-07 | G125: m2/s
A126: Surface tension, N/m | B126: SIGMA_T2(T) | D126: 25 | F126: =SIGMA_T2(D126) -> 0.07197220523 | G126: N/m
A127: Gas/vapor phase (saturated)
A128: Viscosity, Pa s | B128: VMUG_T2(T) | D128: 25 | F128: =vmug_t2(D128) -> 9.866519627e-06 | G128: Pa s
A129: Kinematic viscosity (dense gas), (=mu/rho), m2/s | B129: VNUG_T2(T) (N/A) | G129: m2/s
A130: Ideal gas thermal conductivity, W/(m K) | B130: KID_T2(T) (N/A) | G130: W/(m K)
A131: Single Phase (Gas/vapor) Region
A132: T,P functions | C132: rho [kg/m3] | D132: T [oC] | E132: P [Pa] | F132: Calculated Value
A133: Viscosity (dense gas), Pa s | B133: VMU_TP2(T,P) | D133: 100 | E133: 100000000 | F133: =VMU_TP2(D133,E133) -> 0.0003087541493 | G133: Pa s
A134: Kinematic viscosity (dense gas), (=mu/rho), m2/s | B134: VNU_TP2(T,P) | D134: 100 | E134: 100000000 | F134: =vnu_tp2(D134,E134) -> 3.088277155e-07 | G134: m3/s
A135: Thermal conductivity (dense gas), W/(m K) | B135: k_TP2(T,P) | D135: 100 | E135: 100000000 | F135: =k_TP2(D135,E135) -> 0.7342887969 | G135: W/(m K)
A136: rho,T functions | C136: rho [kg/m3] | D136: T [oC]
A137: Viscosity (dense gas), Pa s | B137: VMU_RT2(RHO,T) | C137: 1000 | D137: 100 | F137: =vmu_rt2(C137,D137) -> 0.0003089263979 | G137: Pa s
A138: Kinematic viscosity (dense gas), (=mu/rho), m2/s | B138: VNU_RT2(RHO,T) | C138: 1000 | D138: 100 | F138: =VNU_RT2(C138,D138) -> 3.089263979e-07 | G138: m2/s
A139: Thermal conductivity (dense gas), W/(m K) | B139: k_RT2(RHO,T) | C139: 1000 | D139: 100 | F139: =k_RT2(C139,D139) -> 0.7346165335 | G139: W/(m K)
A140: Other properties | C140: rho [kg/m3] | D140: T [oC] | E140: P [Pa]
A141: Dielectric constant (IAPWS, 1997) | B141: EPS_RT2(RHO,T) | C141: 1000 | D141: 25 | F141: =eps_rt2(C141,D141) -> 78.65370706
B142: EPS_TP2(T,P) | D142: 25 | E142: =P_RT2(C141,D141) -> 6691367.454 | F142: =eps_tp2(D142,E142) -> 78.65370706
A143: Dielectric constant (Uematsu and Franck, 1980) | B143: UEPS_RT2(RHO,T) | C143: 1000 | D143: 25 | F143: =ueps_rt2(C143,D143) -> 78.71351
B144: UEPS_TP2(T,P) | D144: 25 | E144: =P_RT2(C143,D143) -> 6691367.454 | F144: =ueps_tp2(D144,E144) -> 78.71351
A145: Ionization constant of water (IAPWS, 2007) | B145: pKW_RT2(RHO,T) | C145: 820.9240452 | D145: 250 | F145: =pkw_rt2(C145,D145) -> 11.05005944
B146: pKW_TP2(T,P) | D146: 250 | E146: =P_RT2(C145,D145) -> 25000000.01 | F146: =pkw_tp2(D146,E146) -> 11.05005944
A147: Ion Product (Marshall and Franck, 1980)-replaced by | B147: MFKW_RT2(RHO,T) | C147: 820.9240452 | D147: 250 | F147: =mfkw_rt2(C147,D147) -> 9.553559524e-12
A148: ionization constant of water formulation | B148: MFKW_TP2(T,P) | D148: 250 | E148: =P_RT2(C147,D147) -> 25000000.01 | F148: =mfkw_tp2(D148,E148) -> 9.553559524e-12
A149: Kirkwood g-factor (IAPWS 1997) | B149: GK_RT2(RHO,T) | C149: 1000 | D149: 25 | F149: =gk_rt2(C149,D149) -> 3.556003527
B150: GK_TP2(T,P) | D150: 25 | E150: =P_RT2(C149,D149) -> 6691367.454 | F150: =gk_tp2(D150,E150) -> 3.556003527
A151: Refractive Index (IAPWS 1997) = func (wavelength,rho,T) | B151: NL_RT2(RHO,T) | C151: 1000 | D151: 25 | F151: =nl_rt2(0.58926,C151,D151) -> 1.333821739
A152: (wavelength in micrometers = 0.58926 for sodium D-line | B152: NL_TP2(T,P) | D152: 25 | E152: =P_RT2(C151,D151) -> 6691367.454 | F152: =nl_tp2(0.58926,D152,E152) -> 1.333821739
A153: Self-Diffusion Coefficient (Lamb, et al., 1981) | B153: DSELF_RT2(RHO,T) | C153: 500 | D153: 400 | F153: =dself_rt2(C153,D153) -> 6.443581941e-11 | G153: m2/s
B154: DSELF_TP2(T,P) | D154: 400 | E154: =P_RT2(C153,D153) -> 37241645.28 | F154: =dself_tp2(D154,E154) -> 6.443581941e-11 | G154: m2/s
A155: Electrical conductivity (IAPWS 1990) | B155: EC_RT2(RHO,T) | C155: 1000 | D155: 25 | F155: =ec_rt2(C155,D155) -> 5.671732783e-06 | G155: S/m
B156: EC_TP2(T,P) | D156: 25 | E156: =P_RT2(C155,D155) -> 6691367.454 | F156: =ec_tp2(D156,E156) -> 5.671732783e-06 | G156: S/m
A157: Function in the Density Model (Mesmer, 1985) | C157: rho [kg/m3] | D157: T [oC] | E157: P [Pa]
A158: Derivative of the volume coefficient function betaP with T | B158: DBETAP_RT2(RHO, T) | C158: 1000 | D158: 100 | F158: =dbetap_rt2(C158,D158) -> 3.250955766e-06
A159: Derivative of the volume coefficient function betaP with T | B159: DBETAP_TP2(T, P) | D159: 100 | E159: 100000000 | F159: =dbetap_tp2(D159,E159) -> 3.260282344e-06

Sheet Example
C4: Input Field
C5: Calculation Field | E5: Example of using the rho_tp2(TinC,PinPa) function
C6: Solver Field
C7: Vector function | I7: Curve label: | J7: =CONCATENATE(F8," C") -> 380 C
C8: Note Field | E8: T [C] | F8: 380
C9: Optional/Disregard | E9: P [MPa] | F9: rho [kg/m3]
E10: 0.01 | F10: =rho_tp2($F$8,E10*1000000) -> 0.03317885035
E11: 0.02 | F11: =rho_tp2($F$8,E11*1000000) -> 0.06636732506
E12: 0.03 | F12: 0.09956543282
E13: 0.04 | F13: 0.1327731823
E14: 0.05 | F14: 0.1659905823
E15: 0.06 | F15: 0.1992176415
E16: 0.07 | F16: 0.2324543685
E17: 0.08 | F17: 0.2657007722
E18: 0.09 | F18: 0.2989568614
E19: 0.1 | F19: 0.3322226446
E20: 0.2 | F20: 0.6654155917
E21: 0.4 | F21: 1.334747823
E22: 0.6 | F22: 2.008068633
E23: 0.8 | F23: 2.685451733
E24: 1 | F24: 3.366972668
E25: 1.5 | F25: 5.089391093
E26: 2 | F26: 6.839425569
E27: 2.5 | F27: 8.618425233
E28: 3 | F28: 10.42783107
E29: 3.5 | F29: 12.2691848
E30: 4 | F30: 14.14413881
E31: 4.5 | F31: 16.05446734
E32: 5 | F32: 18.00207919
E33: 5.5 | F33: 19.98903195
E34: 6 | F34: 22.01754838
E35: 6.5 | F35: 24.09003484
E36: 7 | F36: 26.20910262
E37: 7.5 | F37: 28.37759224
E38: 8 | F38: 30.59860159
E39: 8.5 | F39: 32.87551847
E40: 9 | F40: 35.21205846
E41: 9.5 | F41: 37.61230919
E42: 10 | F42: 40.08078232
E43: 10.5 | F43: 42.62247506
E44: 11 | F44: 45.24294312
E45: 11.5 | F45: 47.94838814
E46: 12 | F46: 50.74576285
E47: 12.5 | F47: 53.64289872
E48: 13 | F48: 56.64866203
E49: 13.5 | F49: 59.77314646
E50: 14 | F50: 63.02791296
E51: 14.5 | F51: 66.42629164
E52: 15 | F52: 69.98376621
E53: 15.5 | F53: 73.71846979
E54: 16 | F54: 77.65183363
E55: 16.5 | F55: 81.80944945
E56: 17 | F56: 86.22223699
E57: 17.5 | F57: 90.92805742
E58: 18 | F58: 95.97399663
E59: 18.5 | F59: 101.4196865
E60: 19 | F60: 107.3422949
E61: 19.5 | F61: 113.8443166
E62: 20 | F62: 121.066319
E63: 20.5 | F63: 129.2090267
E64: 21 | F64: 138.5744855
E65: 21.5 | F65: 149.6504577
E66: 22 | F66: 163.3075216
E67: 22.5 | F67: 181.3554017
E68: 23 | F68: 208.6760217
E69: 23.5 | F69: 268.3774537
E70: 24 | F70: 385.5484225
E71: 24.5 | F71: 427.5686616
E72: 25 | F72: 450.8199989
E73: 25.5 | F73: 466.8320208
E74: 26 | F74: 479.150379
E75: 26.5 | F75: =rho_tp2($F$8,E75*1000000) -> 489.2582201
E76: 27 | F76: 497.8889937
E77: 27.5 | F77: 505.4556139
E78: 28 | F78: 512.2142344
E79: 28.5 | F79: 518.3356688
E80: 29 | F80: 523.9401829
E81: 29.5 | F81: 529.1160465
E82: 30 | F82: 533.9301819
E83: 30.5 | F83: 538.434657
E84: 31 | F84: 542.6708451
E85: 31.5 | F85: 546.672203
E86: 32 | F86: 550.4661894
E87: 32.5 | F87: 554.0756288
E88: 33 | F88: 557.5197055
E89: 33.5 | F89: 560.8147021
E90: 34 | F90: 563.9745591
E91: 34.5 | F91: 567.0113053
E92: 35 | F92: 569.9353933
E93: 35.5 | F93: 572.7559645
E94: 36 | F94: 575.4810604
E95: 36.5 | F95: 578.1177935
E96: 37 | F96: 580.6724855
E97: 37.5 | F97: 583.1507814
E98: 38 | F98: 585.5577436
E99: 38.5 | F99: 587.8979297
E100: 39 | F100: 590.1754584
E101: 39.5 | F101: 592.3940649
E102: 40 | F102: 594.5571471
E103: 40.5 | F103: 596.6678059
E104: 41 | F104: 598.7288794
E105: 41.5 | F105: 600.7429719
E106: 42 | F106: 602.7124796
E107: 42.5 | F107: 604.6396123
E108: 43 | F108: 606.5264129
E109: 43.5 | F109: 608.3747738
E110: 44 | F110: 610.1864516
E111: 44.5 | F111: 611.9630803
E112: 45 | F112: 613.7061826
E113: 45.5 | F113: 615.4171796
E114: 46 | F114: 617.0974006
E115: 46.5 | F115: 618.7480902
E116: 47 | F116: 620.370416
E117: 47.5 | F117: 621.9654747
E118: 48 | F118: 623.5342983
E119: 48.5 | F119: 625.0778584
E120: 49 | F120: 626.5970718
E121: 49.5 | F121: 628.0928041
E122: 50 | F122: 629.5658736
